bitfinex/quotes_BTCUSD_20251007
["timestamp","ask_amount","ask_price","bid_price","bid_amount"]
[1759814284960,0.29166619,124410.0,124400.0,0.00159579]
[1759814284961,0.78797746,124410.0,124400.0,0.00159579]
[1759814285209,0.78797746,124410.0,124400.0,0.08087579]
[1759814285210,0.82712932,124410.0,124400.0,0.08087579]
[1759814285407,0.90712612,124410.0,124400.0,0.00159579]
[1759814286490,0.90712108,124410.0,124400.0,0.00159579]
[1759814288537,1.4058158,124410.0,124400.0,0.00159579]
[1759814288764,0.90712108,124410.0,124400.0,0.00159579]
[1759814290194,1.13400108,124410.0,124400.0,0.00159579]
[1759814293315,0.63526636,124410.0,124400.0,0.00159579]
[1759814293532,1.13396108,124410.0,124400.0,0.00159579]
[1759814297703,0.32842956,124410.0,124400.0,0.00159579]
[1759814297934,0.81210532,124410.0,124400.0,0.00159579]
[1759814299115,1.03894532,124410.0,124400.0,0.00159579]
[1759814303175,1.03909074,124410.0,124400.0,0.00159579]
[1759814305340,1.05408338,124410.0,124400.0,0.00159579]
[1759814305564,1.13408018,124410.0,124400.0,0.00159579]
[1759814308537,1.13400018,124410.0,124400.0,0.00159579]
[1759814309371,0.16081048,124370.0,124360.0,0.20199193]
[1759814309749,0.24393254,124370.0,124360.0,0.28605004]
[1759814310191,0.24393254,124370.0,124360.0,0.28684479]
[1759814310615,0.24493254,124370.0,124360.0,0.51560479]
[1759814310816,0.24493254,124370.0,124360.0,0.51760479]
[1759814313912,0.24493254,124370.0,124360.0,0.85760479]
[1759814318299,0.08412206,124370.0,124360.0,0.85760479]
[1759814319159,0.24493254,124370.0,124360.0,0.85760479]
[1759814321516,0.24493254,124370.0,124360.0,0.8164335]
[1759814321830,0.24493254,124370.0,124360.0,0.85275905]
[1759814325925,0.24493254,124370.0,124360.0,0.68389724]
[1759814326133,0.24689254,124370.0,124360.0,0.68389724]
[1759814326336,0.24689254,124370.0,124360.0,0.37357724]
[1759814326532,0.25009254,124370.0,124360.0,0.68385724]
[1759814326813,0.25009254,124370.0,124360.0,0.00529286]
[1759814327004,0.25009254,124370.0,124360.0,0.08885286]
[1759814327248,0.25009254,124370.0,124360.0,0.31561286]
[1759814327923,0.24909254,124370.0,124360.0,0.31361286]
[1759814328128,0.25309254,124370.0,124360.0,0.31461286]
[1759814328698,0.29448155,124370.0,124360.0,0.31261286]
[1759814328897,0.25309254,124370.0,124360.0,0.31261286]
[1759814329096,0.25909254,124370.0,124360.0,0.31261286]
[1759814347669,0.16083542,124360.0,124340.0,0.3561807]
[1759814347868,0.16083542,124360.0,124340.0,0.51707969]
[1759814347869,0.2439584,124350.0,124340.0,0.51707969]
[1759814348122,0.2439584,124350.0,124340.0,0.60063969]
[1759814348697,0.2439584,124350.0,124340.0,0.62896826]
[1759814349010,0.2439584,124350.0,124340.0,0.86377072]
[1759814349254,0.2459584,124350.0,124340.0,0.86377072]
[1759814349726,0.2459584,124350.0,124340.0,0.86477072]
[1759814350163,0.2479184,124350.0,124340.0,0.85572837]
[1759814350342,0.2499184,124350.0,124340.0,0.85672837]
[1759814350751,0.2499184,124350.0,124340.0,0.69587909]
[1759814350902,0.2499184,124350.0,124340.0,0.85672837]
[1759814351644,0.2531184,124350.0,124340.0,0.85672837]
[1759814352850,0.2531184,124350.0,124340.0,0.67289332]
[1759814353273,0.2531184,124350.0,124340.0,0.50054767]
[1759814353632,0.2531184,124350.0,124340.0,0.50094517]
[1759814353837,0.2499184,124350.0,124340.0,0.50094517]
[1759814354193,0.2531184,124350.0,124340.0,0.50094517]
[1759814354346,0.09228206,124350.0,124340.0,0.50094517]
[1759814354553,0.08712206,124350.0,124340.0,0.50094517]
[1759814362329,0.06394155,124350.0,124340.0,0.50094517]
[1759814363958,0.22477789,124350.0,124340.0,0.50094517]
[1759814366399,0.22973789,124350.0,124340.0,0.41738517]
[1759814366604,0.22973789,124350.0,124340.0,0.50094517]
[1759814367220,0.22680789,124350.0,124340.0,0.50094517]
[1759814367424,0.22680789,124350.0,124340.0,0.52507723]
[1759814367674,0.22680789,124350.0,124340.0,0.21475723]
[1759814367862,0.22973789,124350.0,124340.0,0.52507723]
[1759814368756,0.22680789,124350.0,124340.0,0.52507723]
[1759814370471,0.22973789,124350.0,124340.0,0.52507723]
[1759814375207,0.06394155,124350.0,124340.0,0.52507723]
[1759814381689,0.06313734,124350.0,124340.0,0.52507723]
[1759814387261,0.06834734,124350.0,124340.0,0.52507723]
[1759814387715,0.06529734,124350.0,124340.0,0.52507723]
[1759814387965,0.06313734,124350.0,124340.0,0.52507723]
[1759814394486,0.06313734,124350.0,124340.0,0.52503723]
[1759814399729,0.06529734,124350.0,124340.0,0.52503723]
[1759814399874,0.06834734,124350.0,124340.0,0.86503723]
[1759814400282,0.06834734,124350.0,124340.0,0.55475723]
[1759814400603,0.06529734,124350.0,124340.0,0.86503723]
[1759814400798,0.06313734,124350.0,124340.0,0.86503723]
[1759814401139,0.06834734,124350.0,124340.0,0.86503723]
[1759814401792,0.06529734,124350.0,124340.0,0.86503723]
[1759814401996,0.06834734,124350.0,124340.0,0.86503723]
[1759814402696,0.06529734,124350.0,124340.0,0.86503723]
[1759814403110,0.06313734,124350.0,124340.0,0.86503723]
[1759814409662,0.004,124350.0,124340.0,2.16961723]
[1759814410574,0.002,124350.0,124340.0,2.16961723]
[1759814410775,0.002,124350.0,124340.0,2.17161723]
[1759814411118,0.00053638,124370.0,124360.0,0.50082341]
[1759814411340,0.08365844,124370.0,124360.0,0.72754341]
[1759814411755,0.08365844,124370.0,124360.0,0.75167127]
[1759814412461,0.08465844,124370.0,124360.0,0.75267127]
[1759814413615,0.00153638,124370.0,124360.0,0.75267127]
[1759814417316,0.00153638,124370.0,124360.0,0.83623127]
[1759814418322,0.00350638,124370.0,124360.0,0.83619127]
[1759814418682,0.00661638,124370.0,124360.0,0.83619127]
[1759814419096,0.00153638,124370.0,124360.0,0.83619127]
[1759814436361,0.00350638,124370.0,124360.0,0.83619127]
[1759814436570,0.00661638,124370.0,124360.0,0.83619127]
[1759814437622,0.00350638,124370.0,124360.0,0.83619127]
[1759814437824,0.00153638,124370.0,124360.0,0.83619127]
[1759814439402,0.00153638,124370.0,124360.0,0.75259127]
[1759814439646,0.00153638,124370.0,124360.0,0.83615127]
[1759814440489,0.00153638,124370.0,124360.0,0.52595127]
[1759814440713,0.00153638,124370.0,124360.0,0.83615127]
[1759814453155,0.00153638,124370.0,124360.0,3.02109227]
[1759814455993,0.00107376,124370.0,124360.0,3.02109227]
[1759814457007,0.00107376,124370.0,124360.0,2.31537196]
[1759814457203,0.00107376,124370.0,124360.0,1.20345396]
[1759814457367,0.00107376,124370.0,124360.0,1.62125396]
[1759814460213,0.00107376,124370.0,124360.0,0.87405896]
[1759814460422,0.00601376,124370.0,124360.0,1.44951996]
[1759814460843,0.00107376,124370.0,124360.0,0.80507996]
[1759814461041,0.00107376,124370.0,124360.0,1.11527996]
[1759814461706,0.00107376,124370.0,124360.0,0.80507996]
[1759814461864,0.00107376,124370.0,124360.0,1.11527996]
[1759814462317,0.00107376,124370.0,124360.0,1.04757796]
[1759814462526,0.00107376,124370.0,124360.0,0.98828227]
[1759814466116,0.00107376,124370.0,124360.0,0.83615127]
[1759814466344,0.00601376,124370.0,124360.0,0.83615127]
[1759814466542,0.00601376,124370.0,124360.0,0.89554947]
[1759814466742,0.00305376,124370.0,124360.0,0.89554947]
[1759814466954,0.00107376,124370.0,124360.0,0.89554947]
[1759814474472,0.00107376,124370.0,124360.0,1.00953947]
[1759814476250,0.00107376,124370.0,124360.0,0.69933947]
[1759814476472,0.00107376,124370.0,124360.0,1.34373947]
[1759814482635,7.376e-05,124370.0,124360.0,1.34273947]
[1759814483045,7.376e-05,124370.0,124360.0,1.34873947]
[1759814483218,7.376e-05,124370.0,124360.0,1.43186153]
[1759814484134,0.00107376,124370.0,124360.0,1.43486153]
[1759814486231,0.00107376,124370.0,124360.0,0.79046153]
[1759814486439,0.00107376,124370.0,124360.0,1.43478153]
[1759814490481,0.00107376,124370.0,124360.0,1.43474153]
[1759814491832,0.00107376,124370.0,124360.0,1.35122153]
[1759814492027,0.00107376,124370.0,124360.0,1.43474153]
[1759814511234,0.00107376,124370.0,124360.0,1.43470153]
[1759814511951,0.00107376,124370.0,124360.0,1.35118153]
[1759814512152,0.00107376,124370.0,124360.0,1.43470153]
[1759814513717,0.00107376,124370.0,124360.0,0.79046153]
[1759814513974,0.00107376,124370.0,124360.0,1.43470153]
[1759814516207,0.00107376,124370.0,124360.0,0.79046153]
[1759814516387,0.00107376,124370.0,124360.0,1.43470153]
[1759814521561,0.00107376,124370.0,124360.0,0.79046153]
[1759814521771,0.00107376,124370.0,124360.0,1.43466153]
[1759814524050,0.00107376,124370.0,124360.0,1.25857841]
[1759814524323,0.00107376,124370.0,124360.0,1.41940182]
[1759814526529,0.00107376,124370.0,124360.0,1.44955372]
[1759814526730,1e-08,124370.0,124360.0,1.57455372]
[1759814526955,1e-08,124370.0,124360.0,1.47455372]
[1759814528478,1e-08,124370.0,124360.0,1.57455372]
[1759814530223,1e-08,124370.0,124360.0,1.57683962]
[1759814530859,1e-08,124370.0,124360.0,1.56855372]
[1759814531060,0.06536749,124420.0,124410.0,0.50075878]
[1759814531295,0.06536749,124420.0,124410.0,2.96267078]
[1759814531664,0.06636049,124420.0,124410.0,2.98678654]
[1759814532091,0.000993,124420.0,124410.0,2.98678654]
[1759814532385,0.0014905,124420.0,124410.0,2.98878654]
[1759814533143,0.0024905,124420.0,124410.0,2.98978654]
[1759814533342,0.0024905,124420.0,124410.0,3.04943212]
[1759814536944,0.0024905,124420.0,124410.0,2.63175212]
[1759814537176,0.0024905,124420.0,124410.0,3.04939212]
[1759814538014,0.0075405,124420.0,124410.0,1.59757712]
[1759814538219,0.0075405,124420.0,124410.0,1.42148512]
[1759814538415,0.0075405,124420.0,124410.0,0.70608512]
[1759814538829,0.0075405,124420.0,124410.0,1.20258212]
[1759814539313,0.0024905,124420.0,124410.0,1.20258212]
[1759814541419,0.0024905,124420.0,124410.0,0.89258212]
[1759814541557,0.0024905,124420.0,124410.0,1.20258212]
[1759814542627,0.0044805,124420.0,124410.0,0.58752012]
[1759814542792,0.0024905,124420.0,124410.0,1.23164012]
[1759814542990,0.0024905,124420.0,124410.0,1.53574212]
[1759814544535,0.0075405,124420.0,124410.0,0.58752012]
[1759814544766,0.0075405,124420.0,124410.0,0.89752012]
[1759814544941,0.0075405,124420.0,124410.0,0.52787454]
[1759814545146,0.0075405,124420.0,124410.0,0.83787454]
[1759814545927,0.0075405,124420.0,124410.0,0.52787454]
[1759814546132,0.0075405,124420.0,124410.0,0.83787454]
[1759814551782,0.0075405,124420.0,124410.0,0.52787454]
[1759814551986,0.0075405,124420.0,124410.0,0.83787454]
[1759814556131,0.09066256,124420.0,124410.0,0.83787454]
[1759814557501,0.09066256,124420.0,124410.0,0.52787454]
[1759814557705,0.09066256,124420.0,124410.0,0.83787454]
[1759814557867,0.25140842,124420.0,124410.0,0.18787454]
[1759814558069,0.09066256,124420.0,124410.0,0.49787454]
[1759814558412,0.25140842,124420.0,124410.0,0.49787454]
[1759814559269,0.25140842,124420.0,124410.0,0.33711576]
[1759814559684,0.29312265,124420.0,124410.0,0.33711576]
[1759814560054,0.25140842,124420.0,124410.0,0.33711576]
[1759814570891,0.25140842,124420.0,124410.0,0.02711576]
[1759814571156,0.25140842,124420.0,124410.0,0.33711576]
[1759814576665,0.25140842,124420.0,124410.0,0.02711576]
[1759814576839,0.25140842,124420.0,124410.0,0.003]
[1759814577013,0.74983445,124420.0,124410.0,0.08652]
[1759814577212,0.74983445,124420.0,124410.0,0.313]
[1759814577520,0.74983445,124420.0,124410.0,0.311]
[1759814577721,0.74883445,124420.0,124410.0,0.31]
[1759814577969,0.75283445,124420.0,124410.0,0.311]
[1759814578166,0.83283125,124420.0,124410.0,0.311]
[1759814579093,0.83283125,124420.0,124410.0,0.001]
[1759814579094,0.87198315,124420.0,124410.0,0.001]
[1759814579370,0.87198315,124420.0,124410.0,0.02152]
[1759814579546,0.89610962,124420.0,124410.0,0.02152]
[1759814580120,0.90361285,124420.0,124410.0,0.02152]
[1759814581101,0.90361285,124420.0,124410.0,0.001]
[1759814581403,0.89610962,124420.0,124410.0,0.0896]
[1759814581982,0.9186116,124420.0,124410.0,0.001]
[1759814582123,1.76507492,124420.0,124390.0,0.08352]
[1759814582327,0.77247169,124400.0,124390.0,0.08352]
[1759814582580,0.85246849,124400.0,124390.0,0.15328]
[1759814582735,0.87864715,124400.0,124390.0,0.15328]
[1759814583095,0.88180715,124400.0,124390.0,0.15328]
[1759814583353,0.88180715,124400.0,124390.0,0.15428]
[1759814583513,0.89280715,124400.0,124390.0,0.15428]
[1759814583720,0.89280715,124400.0,124390.0,0.15328]
[1759814583923,0.16081048,124370.0,124360.0,0.02466506]
[1759814584150,0.24393254,124370.0,124360.0,0.23718506]
[1759814584442,0.24914254,124370.0,124360.0,0.23718506]
[1759814585031,0.24963973,124370.0,124360.0,0.23718506]
[1759814585418,0.25063973,124370.0,124360.0,0.23718506]
[1759814585820,0.25163973,124370.0,124360.0,0.2140564]
[1759814586204,0.33163653,124370.0,124360.0,0.2140564]
[1759814586789,0.25163973,124370.0,124360.0,0.2140564]
[1759814594252,0.25163973,124370.0,124360.0,0.2281364]
[1759814594487,0.25163973,124370.0,124360.0,0.3116964]
[1759814597112,0.24847973,124370.0,124360.0,0.3116964]
[1759814597335,0.25144973,124370.0,124360.0,0.3116964]
[1759814603445,0.26640235,124370.0,124360.0,0.3116964]
[1759814603990,0.00249719,124370.0,124360.0,1.14483981]
[1759814604408,0.00249719,124370.0,124360.0,1.16896569]
[1759814605192,0.00149719,124370.0,124360.0,1.16796569]
[1759814605400,0.00149719,124370.0,124360.0,1.22954082]
[1759814605638,0.00149719,124370.0,124360.0,1.23254082]
[1759814606014,0.00149719,124370.0,124360.0,1.23854082]
[1759814612988,0.00149719,124370.0,124360.0,1.32166288]
[1759814613267,1e-08,124380.0,124370.0,0.55765106]
[1759814613431,1e-08,124380.0,124370.0,3.35496506]
[1759814613732,1e-08,124380.0,124370.0,3.43808712]
[1759814614363,1e-08,124380.0,124370.0,3.46220441]
[1759814614695,1e-08,124380.0,124370.0,3.47020441]
[1759814615100,1e-08,124380.0,124370.0,3.47420441]
[1759814617419,1e-08,124380.0,124370.0,3.47251573]
[1759814618750,1e-08,124380.0,124370.0,3.13827573]
[1759814618919,1e-08,124380.0,124370.0,4.11719573]
[1759814620559,0.07036749,124430.0,124420.0,0.16074586]
[1759814620803,0.00504972,124430.0,124420.0,2.27716086]
[1759814620998,0.00504972,124430.0,124420.0,2.27720086]
[1759814621202,0.00504972,124430.0,124420.0,2.3013123]
[1759814621587,0.00704972,124430.0,124420.0,2.3023123]
[1759814621828,0.01104972,124430.0,124420.0,2.3023123]
[1759814622030,0.00704972,124430.0,124420.0,2.3023123]
[1759814622201,0.00704972,124430.0,124420.0,2.3043123]
[1759814622409,0.00704972,124430.0,124420.0,1.6595923]
[1759814622601,0.00704972,124430.0,124420.0,1.8867123]
[1759814622801,0.00704972,124430.0,124420.0,2.3043923]
[1759814623051,0.00504972,124430.0,124420.0,2.3033923]
[1759814623372,0.00604972,124430.0,124420.0,2.3053923]
[1759814623522,0.00604972,124430.0,124420.0,1.6605923]
[1759814623725,0.00604972,124430.0,124420.0,2.36705828]
[1759814626131,0.0070426,124430.0,124420.0,2.36705828]
[1759814626576,0.0070426,124430.0,124420.0,2.45018034]
[1759814628330,0.0070426,124430.0,124420.0,2.48033224]
[1759814628817,0.0070426,124430.0,124420.0,2.81429224]
[1759814629837,0.0070426,124430.0,124420.0,1.83553224]
[1759814630036,0.0070426,124430.0,124420.0,2.81429224]
[1759814630534,0.0070426,124430.0,124420.0,2.81425224]
[1759814635548,0.0070426,124430.0,124420.0,1.83553224]
[1759814636002,0.0090726,124430.0,124420.0,2.81405224]
[1759814636214,0.0070426,124430.0,124420.0,2.81405224]
[1759814638340,0.0070426,124430.0,124420.0,1.83553224]
[1759814638550,0.0070426,124430.0,124420.0,2.81405224]
[1759814641242,0.01451726,124430.0,124420.0,2.81405224]
[1759814643368,0.0070426,124430.0,124420.0,2.81405224]
[1759814647318,0.01453119,124430.0,124420.0,2.81405224]
[1759814649250,0.0070426,124430.0,124420.0,2.81405224]
[1759814650031,0.0070426,124430.0,124420.0,1.83553224]
[1759814650231,0.0070426,124430.0,124420.0,2.81389224]
[1759814650436,0.0090726,124430.0,124420.0,1.80538034]
[1759814650645,0.0122926,124430.0,124420.0,2.44970034]
[1759814651087,0.0090726,124430.0,124420.0,2.44970034]
[1759814651302,0.0070426,124430.0,124420.0,2.44970034]
[1759814652877,0.0070426,124430.0,124420.0,2.03222034]
[1759814653088,0.0070426,124430.0,124420.0,2.44970034]
[1759814656317,0.0122026,124430.0,124420.0,1.80538034]
[1759814656558,0.0122026,124430.0,124420.0,2.44966034]
[1759814657186,0.0122026,124430.0,124420.0,1.00235828]
[1759814657400,0.0122026,124430.0,124420.0,1.64663828]
[1759814657802,0.0070426,124430.0,124420.0,1.64663828]
[1759814665780,0.0122026,124430.0,124420.0,1.64663828]
[1759814666764,0.0091526,124430.0,124420.0,1.64663828]
[1759814666906,0.0070426,124430.0,124420.0,1.64663828]
[1759814669647,0.0122026,124430.0,124420.0,1.64663828]
[1759814670867,0.0122026,124430.0,124420.0,1.00235828]
[1759814671058,0.0122026,124430.0,124420.0,1.64651828]
[1759814671564,0.0122026,124430.0,124420.0,1.00235828]
[1759814671765,0.0122026,124430.0,124420.0,1.64651828]
[1759814672355,0.0091526,124430.0,124420.0,1.64651828]
[1759814672966,0.0122026,124430.0,124420.0,1.64651828]
[1759814674310,0.0070426,124430.0,124420.0,1.64651828]
[1759814675127,0.0091526,124430.0,124420.0,1.00235828]
[1759814675423,0.0122026,124430.0,124420.0,1.64651828]
[1759814676821,0.0091526,124430.0,124420.0,1.64651828]
[1759814676980,0.0070426,124430.0,124420.0,1.64651828]
[1759814677383,0.0121726,124430.0,124420.0,1.64651828]
[1759814679432,0.0091026,124430.0,124420.0,1.45770763]
[1759814679639,0.0091026,124430.0,124420.0,1.61845349]
[1759814680052,0.0070426,124430.0,124420.0,1.61845349]
[1759814684286,0.0091026,124430.0,124420.0,1.61845349]
[1759814685270,0.0070426,124430.0,124420.0,1.61845349]
[1759814686568,0.0070426,124430.0,124420.0,1.61837349]
[1759814686768,0.0119926,124430.0,124420.0,1.61837349]
[1759814687341,0.0070426,124430.0,124420.0,1.61837349]
[1759814690259,0.0090526,124430.0,124420.0,1.61837349]
[1759814690372,0.0070426,124430.0,124420.0,1.61837349]
[1759814691999,0.0119926,124430.0,124420.0,1.61833349]
[1759814693288,0.0119926,124430.0,124420.0,0.77281049]
[1759814693496,0.0119926,124430.0,124420.0,0.74589049]
[1759814693833,0.0119926,124430.0,124420.0,1.38993049]
[1759814694412,0.0119926,124430.0,124420.0,1.29803005]
[1759814696057,0.0119926,124430.0,124420.0,1.29807005]
[1759814696455,0.0119926,124430.0,124420.0,1.32218331]
[1759814696616,0.0119926,124430.0,124420.0,1.18242705]
[1759814699958,0.0119926,124430.0,124420.0,1.29550605]
[1759814700383,0.0119926,124430.0,124420.0,1.18242705]
[1759814703912,0.0119926,124430.0,124420.0,0.53834705]
[1759814704159,0.0119926,124430.0,124420.0,1.18242705]
[1759814716082,0.17272554,124430.0,124420.0,0.53834705]
[1759814716314,0.17272554,124430.0,124420.0,1.12072107]
[1759814717166,0.17272554,124430.0,124420.0,0.95997521]
[1759814717348,0.17272554,124430.0,124420.0,1.12072107]
[1759814718439,0.17272554,124430.0,124420.0,0.95997521]
[1759814719298,0.20607011,124430.0,124420.0,0.95997521]
[1759814719663,0.20607011,124430.0,124420.0,1.12072107]
[1759814720009,0.17272554,124430.0,124420.0,1.12072107]
[1759814721847,0.17272554,124430.0,124420.0,0.64804]
[1759814722609,0.17272554,124430.0,124420.0,0.66609221]
[1759814723288,0.2558476,124430.0,124420.0,0.66609221]
[1759814726272,0.2558476,124430.0,124420.0,0.82683807]
[1759814726940,0.2558476,124430.0,124420.0,0.66609221]
[1759814728690,0.2558476,124430.0,124420.0,0.69020834]
[1759814731078,0.2558476,124430.0,124420.0,0.8509542]
[1759814731980,0.2558476,124430.0,124420.0,0.69020834]
[1759814732189,0.2558476,124430.0,124420.0,0.8509542]
[1759814732359,0.09016466,124430.0,124420.0,0.8509542]
[1759814732772,0.09527466,124430.0,124420.0,0.8509542]
[1759814732978,0.2560076,124430.0,124420.0,0.8509542]
[1759814745344,0.09527466,124430.0,124420.0,0.8509542]
[1759814746005,0.09016466,124430.0,124420.0,0.8509542]
[1759814746488,0.09226466,124430.0,124420.0,0.8509542]
[1759814747098,0.09523466,124430.0,124420.0,0.8509542]
[1759814749508,0.09523466,124430.0,124420.0,0.83290199]
[1759814750354,0.0070426,124430.0,124420.0,1.17290199]
[1759814751416,0.0070426,124430.0,124420.0,0.52886199]
[1759814751618,0.0121126,124430.0,124420.0,1.17302199]
[1759814752481,0.0121126,124430.0,124420.0,0.52886199]
[1759814752693,0.0121126,124430.0,124420.0,1.17302199]
[1759814755611,0.0070426,124430.0,124420.0,1.17302199]
[1759814760194,0.0070426,124430.0,124420.0,1.18939481]
[1759814764716,0.0070426,124430.0,124420.0,3.18459081]
[1759814765543,0.0070426,124430.0,124420.0,3.14171481]
[1759814769940,0.0070426,124430.0,124420.0,2.90311981]
[1759814770159,0.0070426,124430.0,124420.0,2.84032981]
[1759814771766,0.0091426,124430.0,124420.0,2.50019781]
[1759814771974,0.0121126,124430.0,124420.0,2.08987081]
[1759814772487,0.0121126,124430.0,124420.0,2.06028981]
[1759814773131,0.0121126,124430.0,124420.0,2.01356981]
[1759814773477,0.0121126,124430.0,124420.0,1.90598781]
[1759814773678,0.0091426,124430.0,124420.0,1.90598781]
[1759814774012,0.0091426,124430.0,124420.0,1.24145681]
[1759814774343,0.0121126,124430.0,124420.0,1.79755881]
[1759814774518,0.0121126,124430.0,124420.0,1.58720581]
[1759814776878,0.0121126,124430.0,124420.0,0.94308581]
[1759814777075,0.0121126,124430.0,124420.0,1.16960581]
[1759814777282,0.0121126,124430.0,124420.0,1.58720581]
[1759814777482,0.0070426,124430.0,124420.0,1.58720581]
[1759814779594,0.0070426,124430.0,124420.0,1.67032787]
[1759814780499,0.00298,124470.0,124430.0,0.34]
[1759814780748,0.00312934,124470.0,124460.0,0.50069419]
[1759814780974,0.00312934,124470.0,124460.0,0.81081419]
[1759814780975,0.00014934,124470.0,124460.0,0.81081419]
[1759814781190,0.00014934,124470.0,124460.0,0.83492086]
[1759814781616,0.00619934,124470.0,124460.0,0.83492086]
[1759814782064,0.00321934,124470.0,124460.0,0.83492086]
[1759814782247,0.00221934,124470.0,124460.0,0.83492086]
[1759814782460,0.00221934,124470.0,124460.0,0.89395801]
[1759814783312,0.01519934,124470.0,124460.0,0.58383801]
[1759814783494,0.01919934,124470.0,124460.0,0.89487801]
[1759814783726,0.01419934,124470.0,124460.0,0.89487801]
[1759814783931,0.01626934,124470.0,124460.0,0.89487801]
[1759814784128,0.01226934,124470.0,124460.0,0.89387801]
[1759814784269,0.00721934,124470.0,124460.0,0.89584801]
[1759814784539,0.16904879,124480.0,124470.0,0.16068128]
[1759814784741,0.25432083,124480.0,124470.0,0.38724128]
[1759814785546,0.25432083,124480.0,124470.0,0.18478795]
[1759814785810,0.25432083,124480.0,124470.0,0.49482795]
[1759814786020,0.25432083,124480.0,124470.0,0.41134795]
[1759814786222,0.25432083,124480.0,124470.0,0.49482795]
[1759814786427,0.25432083,124480.0,124470.0,0.49478795]
[1759814786631,0.26331312,124480.0,124470.0,0.49478795]
[1759814786858,0.26631312,124480.0,124470.0,0.49578795]
[1759814795430,0.26631312,124480.0,124470.0,0.02510667]
[1759814795636,0.26631312,124480.0,124470.0,0.49574795]
[1759814797424,0.26631312,124480.0,124470.0,0.02510667]
[1759814797627,0.26631312,124480.0,124470.0,0.33506667]
[1759814799013,0.26631312,124480.0,124470.0,0.49574795]
[1759814803632,0.26631312,124480.0,124470.0,0.02510667]
[1759814803848,0.26631312,124480.0,124470.0,0.33506667]
[1759814804497,0.26631312,124480.0,124470.0,0.49574795]
[1759814807510,0.26631312,124480.0,124470.0,0.33506667]
[1759814809025,0.26631312,124480.0,124470.0,0.02510667]
[1759814809233,0.26631312,124480.0,124470.0,0.33506667]
[1759814809651,0.26631312,124480.0,124470.0,0.49574795]
[1759814815551,0.26333312,124480.0,124470.0,0.49574795]
[1759814815970,0.26642312,124480.0,124470.0,0.49574795]
[1759814817871,0.10059433,124480.0,124470.0,0.49791795]
[1759814818097,0.01747227,124480.0,124470.0,0.83791795]
[1759814818309,0.01747227,124480.0,124470.0,0.83994795]
[1759814821074,0.01747227,124480.0,124470.0,2.24635695]
[1759814821300,0.01747227,124480.0,124470.0,2.18886295]
[1759814821525,0.01747227,124480.0,124470.0,1.95360995]
[1759814821730,0.01747227,124480.0,124470.0,1.78775995]
[1759814821931,0.01747227,124480.0,124470.0,1.47224695]
[1759814824900,0.00647227,124480.0,124470.0,1.16128695]
[1759814825074,0.01247227,124480.0,124470.0,1.80624695]
[1759814830076,0.01247227,124480.0,124470.0,1.16228695]
[1759814830310,0.01247227,124480.0,124470.0,1.80616695]
[1759814830516,0.01247227,124480.0,124470.0,1.30182295]
[1759814830841,0.01247227,124480.0,124470.0,1.71926295]
[1759814832227,0.01247227,124480.0,124470.0,1.07538295]
[1759814832445,0.01247227,124480.0,124470.0,1.71926295]
[1759814832627,0.01247227,124480.0,124470.0,1.07335295]
[1759814832839,0.01247227,124480.0,124470.0,1.71723295]
[1759814833487,0.01247227,124480.0,124470.0,1.71926295]
[1759814836644,0.01247227,124480.0,124470.0,1.534475]
[1759814837079,0.01247227,124480.0,124470.0,1.55857764]
[1759814837698,0.01247227,124480.0,124470.0,1.71925892]
[1759814845260,0.01455227,124480.0,124470.0,1.07117892]
[1759814845464,0.01752227,124480.0,124470.0,1.48857892]
[1759814845624,0.01752227,124480.0,124470.0,1.16962392]
[1759814846281,0.01752227,124480.0,124470.0,0.83570392]
[1759814847074,0.01455227,124480.0,124470.0,0.83775392]
[1759814847717,0.01752227,124480.0,124470.0,0.83775392]
[1759814848474,0.01752227,124480.0,124470.0,0.83570392]
[1759814849203,0.01247227,124480.0,124470.0,0.83775392]
[1759814849412,0.01455227,124480.0,124470.0,0.83775392]
[1759814849622,0.01752227,124480.0,124470.0,0.83775392]
[1759814850865,0.01752227,124480.0,124470.0,0.83570392]
[1759814852165,0.01247227,124480.0,124470.0,2.04873592]
[1759814852626,0.01455227,124480.0,124470.0,2.02304792]
[1759814852823,0.01752227,124480.0,124470.0,1.15119492]
[1759814853925,0.01752227,124480.0,124470.0,0.73567592]
[1759814856111,0.01455227,124480.0,124470.0,0.73772592]
[1759814858011,0.01455227,124480.0,124470.0,1.07772592]
[1759814858598,0.01774227,124480.0,124470.0,1.07567592]
[1759814861455,0.01774227,124480.0,124470.0,0.76575592]
[1759814861671,0.27941256,124480.0,124470.0,0.10858264]
[1759814861883,0.26153271,124480.0,124470.0,0.49574392]
[1759814862087,0.01247227,124480.0,124470.0,0.49984392]
[1759814862519,0.01247227,124480.0,124470.0,0.49781392]
[1759814870300,0.01247227,124480.0,124470.0,2.73733792]
[1759814870492,0.01247227,124480.0,124470.0,2.84636292]
[1759814871677,0.01247227,124480.0,124470.0,1.97468092]
[1759814875287,0.01247227,124480.0,124470.0,1.77223892]
[1759814881762,0.01247227,124480.0,124470.0,1.85536098]
[1759814882421,0.0004,124490.0,124480.0,0.16066838]
[1759814882627,0.0004,124490.0,124480.0,2.85261238]
[1759814882831,0.06441328,124520.0,124510.0,0.16062966]
[1759814883036,0.15007297,124520.0,124510.0,0.47094966]
[1759814883447,0.08864969,124520.0,124510.0,0.47094966]
[1759814883824,0.08864969,124520.0,124510.0,0.49504911]
[1759814884478,0.09364969,124520.0,124510.0,0.49504911]
[1759814884977,0.25426645,124520.0,124510.0,0.49504911]
[1759814885218,0.09864969,124520.0,124510.0,0.49604911]
[1759814885616,0.09364969,124520.0,124510.0,0.49504911]
[1759814885857,0.08864969,124520.0,124510.0,0.49504911]
[1759814886081,0.09164969,124520.0,124510.0,0.49604911]
[1759814890811,0.09164969,124520.0,124510.0,0.83604911]
[1759814891236,0.08661969,124520.0,124510.0,0.83810911]
[1759814891439,0.00349763,124520.0,124510.0,0.83810911]
[1759814893287,0.00429104,124520.0,124510.0,0.83810911]
[1759814895480,0.00636104,124520.0,124510.0,0.83810911]
[1759814896244,0.00429104,124520.0,124510.0,0.84013911]
[1759814896462,0.00429104,124520.0,124510.0,0.83810911]
[1759814898616,0.00429104,124520.0,124510.0,1.94233511]
[1759814898792,0.00429104,124520.0,124510.0,1.89855211]
[1759814900172,0.00129104,124520.0,124510.0,1.89755211]
[1759814900387,0.00229104,124520.0,124510.0,1.89855211]
[1759814900813,0.00229104,124520.0,124510.0,1.67135417]
[1759814901099,0.00229104,124520.0,124510.0,2.02804811]
[1759814901303,0.00229104,124520.0,124510.0,2.03007811]
[1759814907699,0.00229104,124520.0,124510.0,1.38396811]
[1759814907899,0.00229104,124520.0,124510.0,2.02792811]
[1759814908835,0.00229104,124520.0,124510.0,1.38396811]
[1759814908994,0.00751104,124520.0,124510.0,1.63823411]
[1759814909190,0.00751104,124520.0,124510.0,0.99427411]
[1759814909397,0.00751104,124520.0,124510.0,1.63823411]
[1759814909608,0.00751104,124520.0,124510.0,1.50778911]
[1759814909815,0.00751104,124520.0,124510.0,1.33120111]
[1759814910016,0.00751104,124520.0,124510.0,1.41464111]
[1759814910861,0.00544104,124520.0,124510.0,1.41665111]